fUST/lending_fUST_20251219
["ID","MTS","AMOUNT","RATE_DAILY","PERIOD"]
[399121073,1766115800885,-427.88160593,0.00013273,2]
[399121074,1766115800912,-700.9477518,0.00014247,2]
[399121075,1766115800938,-1000.0,0.00014247,2]
[399121076,1766115800964,-1000.0,0.00014247,2]
[399121077,1766115800992,-1063.30775676,0.00014247,2]
[399121078,1766115801019,-615.73577102,0.00014247,2]
[399121079,1766115832655,150.0,0.00010433,2]
[399121080,1766115833057,150.0,0.00010929,2]
[399121081,1766115833935,150.0,0.00011426,2]
[399121082,1766115834380,150.0,0.00011923,2]
[399121083,1766115834822,150.0,0.0001242,2]
[399121084,1766115835235,150.0,0.00012917,2]
[399121085,1766115862308,300.0,0.00012854,120]
[399121086,1766115864040,300.0,0.00012854,120]
[399121087,1766115900692,150.0,0.00012306,2]
[399121088,1766115901170,150.0,0.00012892,2]
[399121091,1766115940311,-500.0,0.00013273,2]
[399121092,1766115940344,-500.0,0.00013273,2]
[399121093,1766115940372,-500.0,0.00013273,2]
[399121094,1766115940403,-500.0,0.00013273,2]
[399121095,1766115940431,-1200.0,0.00013412,2]
[399121096,1766115940463,-150.0,0.00013413,2]
[399121097,1766115940494,-150.0,0.00013486,2]
[399121098,1766115940521,-300.0,0.00013673,2]
[399121099,1766115940552,-300.0,0.00013697,2]
[399121100,1766115940581,-300.0,0.00013698,2]
[399121101,1766115940610,-157.0,0.00013698,2]
[399121102,1766115940637,-300.0,0.00013698,2]
[399121104,1766115943013,-303.53068378,0.00013699,2]
[399121105,1766115943042,-186.61304972,0.00013699,2]
[399121106,1766115943072,-500.0,0.00013699,2]
[399121107,1766115943102,-500.0,0.00013699,2]
[399121108,1766115943132,-500.0,0.00013699,2]
[399121109,1766115943161,-500.0,0.00013699,2]
[399121110,1766115943192,-500.0,0.00013699,2]
[399121111,1766115943222,-500.0,0.00013699,2]
[399121112,1766115943253,-500.0,0.00013699,2]
[399121114,1766115943282,-500.0,0.00013699,2]
[399121115,1766115943312,-498.4550356,0.00013821,2]
[399121117,1766115946480,-1000.0,0.00013821,2]
[399121118,1766115946507,-1000.0,0.00013821,2]
[399121119,1766115946538,-1000.0,0.00013821,2]
[399121120,1766115946568,-150.0,0.00014064,2]
[399121121,1766115950957,-5000.0,0.00014104,2]
[399121122,1766115958909,0.01,0.00014104,2]
[399121123,1766115963777,500.0,0.00013699,2]
[399121124,1766115963807,500.0,0.00013699,2]
[399121125,1766115966725,150.0,0.000131,2]
[399121126,1766115967053,500.0,0.00013273,2]
[399121127,1766115967109,1000.0,0.00013821,2]
[399121128,1766115967295,500.0,0.00013273,2]
[399121129,1766115967321,500.0,0.00013699,2]
[399121130,1766115967351,500.0,0.00013273,2]
[399121131,1766115967377,1139.8318198,0.00013821,2]
[399121132,1766115967402,500.0,0.00013273,2]
[399121133,1766115967428,1000.0,0.00013821,2]
[399121134,1766115967458,1000.0,0.00013821,2]
[399121135,1766115967621,150.0,0.00013724,2]
[399121136,1766115970650,500.0,0.00013699,2]
[399121137,1766115999136,-183.59389039,0.00014104,2]
[399121138,1766116024103,500.0,0.00013273,2]
[399121139,1766116024133,1052.41198141,0.00013821,2]
[399121140,1766116024259,500.0,0.00013699,2]
[399121141,1766116024288,500.0,0.00013699,2]
[399121142,1766116024372,500.0,0.00013273,2]
[399121143,1766116024421,1000.0,0.00013821,2]
[399121144,1766116024525,500.0,0.00013699,2]
[399121145,1766116025001,500.0,0.00013699,2]
[399121146,1766116025156,500.0,0.00013699,2]
[399121147,1766116025458,500.0,0.00013273,2]
[399121148,1766116025532,1000.0,0.00013821,2]
[399121149,1766116037490,150.0,0.0001144,2]
[399121150,1766116037878,150.0,0.00011984,2]
[399121151,1766116038352,150.0,0.00012529,2]
[399121152,1766116038743,150.0,0.00013074,2]
[399121153,1766116045836,-150.0,0.00013619,2]
[399121154,1766116045863,-300.0,0.00013673,2]
[399121155,1766116045889,-500.0,0.00013699,2]
[399121156,1766116048300,500.0,0.00013273,2]
[399121157,1766116048360,1000.0,0.00013821,2]
[399121158,1766116049207,500.0,0.00013699,2]
[399121159,1766116083663,500.0,0.00013273,2]
[399121160,1766116083721,1000.0,0.00013821,2]
[399121161,1766116086309,500.0,0.00013699,2]
[399121162,1766116087686,500.0,0.00013699,2]
[399121163,1766116100350,-2462.426498,0.00013851,2]
[399121164,1766116105917,150.0,0.00011102,2]
[399121165,1766116106386,150.0,0.00011631,2]
[399121166,1766116107262,150.0,0.0001216,2]
[399121167,1766116107678,190.73,0.00012688,2]
[399121168,1766116108095,238.41,0.00013217,2]
[399121169,1766116108629,286.09,0.00013746,2]
[399121170,1766116144032,500.0,0.00013699,2]
[399121171,1766116144074,500.0,0.00013699,2]
[399121172,1766116144138,500.0,0.00013699,2]
[399121173,1766116146067,500.0,0.00013699,2]
[399121174,1766116146091,-3091.85249349,0.00014104,2]
[399121175,1766116149282,500.0,0.00013699,2]
[399121176,1766116152763,-1724.54361612,0.00014104,2]
[399121177,1766116152792,-150.0,0.00014134,2]
[399121178,1766116152819,-300.0,0.00014163,2]
[399121195,1766116159215,-500.0,0.00013699,2]
[399121197,1766116165233,-842.7421796,0.00013895,2]
[399121198,1766116165261,-3314.5256408,0.00014022,2]
[399121201,1766116173055,-500.0,0.00013273,2]
[399121202,1766116173083,-300.0,0.00013673,2]
[399121203,1766116173110,-500.0,0.00013699,2]
[399121204,1766116173138,-1000.0,0.00013821,2]
[399121205,1766116173168,-1685.4743592,0.00014022,2]
[399121206,1766116181434,150.0,0.00012349,2]
[399121207,1766116181834,151.12,0.00012937,2]
[399121208,1766116182255,226.68,0.00013525,2]
[399121209,1766116185524,1501.2612816,0.00014104,2]
[399121210,1766116185548,3498.7387184,0.00014104,2]
[399121211,1766116201796,-238.0,0.00013698,2]
[399121212,1766116204938,-500.0,0.00013273,2]
[399121213,1766116207115,-500.0,0.00013273,2]
[399121214,1766116207141,-500.0,0.00013273,2]
[399121215,1766116207161,-500.0,0.00013273,2]
[399121216,1766116207181,-60360.9599711,0.00013699,2]
[399121217,1766116207201,-500.0,0.00013699,2]
[399121218,1766116207226,-500.0,0.00013699,2]
[399121219,1766116207254,-500.0,0.00013699,2]
[399121220,1766116207274,-500.0,0.00013699,2]
[399121221,1766116207295,-615.0,0.00013699,2]
[399121222,1766116207325,-1000.0,0.00013821,2]
[399121223,1766116207352,-1000.0,0.00013821,2]
[399121224,1766116207381,-1000.0,0.00013821,2]
[399121225,1766116207401,-1000.0,0.00013821,2]
[399121226,1766116207432,4560.7616295,0.00013872,2]
[399121227,1766116208399,1200.0,0.00013698,2]
[399121228,1766116209626,5000.0,0.00014,2]
[399121229,1766116211164,500.0,0.00013699,2]
[399121230,1766116216859,-302.24,0.00014113,2]
[399121231,1766116216879,-186.29158513,0.00014147,2]
[399121232,1766116216899,-321.8044363,0.00014147,2]
[399121233,1766116216918,-11061.0274701,0.00014164,2]
[399121234,1766116216939,-600.0,0.00014221,2]
[399121235,1766116216959,-500.0,0.00014246,2]
[399121236,1766116216979,-1049.33553539,0.00014247,2]
[399121237,1766116217001,-1000.0,0.00014247,2]
[399121238,1766116217020,-1000.0,0.00014247,2]
[399121239,1766116217039,-249.04765708,0.00014247,2]
[399121240,1766116217058,-1000.0,0.00014247,2]
[399121241,1766116217078,-1000.0,0.00014247,2]
[399121242,1766116217097,-1000.0,0.00014247,2]
[399121243,1766116217116,-1000.0,0.00014247,2]
[399121244,1766116217135,-1000.0,0.00014247,2]
[399121245,1766116217154,-1000.0,0.00014247,2]
[399121246,1766116217173,-1000.0,0.00014247,2]
[399121247,1766116217192,-1000.0,0.00014247,2]
[399121248,1766116217211,-250.84708939,0.00014247,2]
[399121249,1766116217230,-1000.0,0.00014247,2]
[399121250,1766116217249,-1000.0,0.00014247,2]
[399121251,1766116217269,-1000.0,0.00014247,2]
[399121252,1766116217288,-1000.0,0.00014247,2]
[399121253,1766116217307,-1000.0,0.00014247,2]
[399121254,1766116217327,-1000.0,0.00014247,2]
[399121255,1766116217346,-376.78861796,0.00014247,2]
[399121256,1766116217365,-1000.0,0.00014247,2]
[399121257,1766116217384,-1000.0,0.00014247,2]
[399121258,1766116217404,-1000.0,0.00014247,2]
[399121259,1766116217423,-1000.0,0.00014247,2]
[399121260,1766116217442,-1000.0,0.00014247,2]
[399121261,1766116217462,-1000.0,0.00014247,2]
[399121262,1766116217481,-1000.0,0.00014247,2]
[399121263,1766116217500,-1003.8289557,0.00014247,2]
[399121264,1766116217524,-154.07,0.00014247,2]
[399121265,1766116217545,-500.0,0.00014264,2]
[399121266,1766116217566,-500.0,0.00014264,2]
[399121267,1766116217586,-500.0,0.00014264,2]
[399121268,1766116217612,-500.0,0.00014264,2]
[399121269,1766116217635,-163.3440736,0.00014264,2]
[399121270,1766116217656,-500.0,0.00014264,2]
[399121271,1766116217677,-500.0,0.00014264,2]
[399121272,1766116217696,-353.66993166,0.00014264,2]
[399121273,1766116217717,-500.0,0.00014264,2]
[399121274,1766116217737,-500.0,0.00014264,2]
[399121275,1766116217756,-500.0,0.00014264,2]
[399121276,1766116217777,-500.0,0.00014264,2]
[399121277,1766116217797,-500.0,0.00014264,2]
[399121278,1766116217819,-500.0,0.00014264,2]
[399121279,1766116217842,-500.0,0.00014264,2]
[399121280,1766116217863,-500.0,0.00014264,2]
[399121281,1766116217883,-214.29996739,0.00014264,2]
[399121282,1766116217905,-500.0,0.00014264,2]
[399121283,1766116217926,-500.0,0.00014264,2]
[399121284,1766116217946,-500.0,0.00014264,2]
[399121285,1766116217967,-500.0,0.00014264,2]
[399121286,1766116217986,-500.0,0.00014264,2]
[399121287,1766116218007,-500.0,0.00014264,2]
[399121288,1766116218032,-500.0,0.00014264,2]
[399121289,1766116218052,-500.0,0.00014264,2]
[399121290,1766116218075,-500.0,0.00014264,2]
[399121291,1766116218098,-163.15004974,0.00014264,2]
[399121292,1766116218118,-500.0,0.00014264,2]
[399121293,1766116218140,-266.64020728,0.00014264,2]
[399121294,1766116218162,-505.62499053,0.00014264,2]
[399121295,1766116218272,-500.0,0.00014264,2]
[399121296,1766116218293,-500.0,0.00014264,2]
[399121297,1766116218314,-500.0,0.00014264,2]
[399121298,1766116218335,-500.0,0.00014264,2]
[399121299,1766116218355,-500.0,0.00014264,2]
[399121300,1766116218376,-500.0,0.00014264,2]
[399121301,1766116218396,-500.0,0.00014264,2]
[399121302,1766116218416,-500.0,0.00014264,2]
[399121303,1766116218436,-500.0,0.00014264,2]
[399121304,1766116218455,-500.0,0.00014264,2]
[399121305,1766116218476,-500.0,0.00014264,2]
[399121306,1766116218496,-500.0,0.00014264,2]
[399121307,1766116218516,-500.0,0.00014264,2]
[399121308,1766116218540,-775.75441622,0.00014265,2]
[399121309,1766116218561,-502.92288875,0.00014266,2]
[399121310,1766116218584,-500.0,0.00014266,2]
[399121311,1766116218607,-1500.0,0.00014368,2]
[399121312,1766116218627,-1500.0,0.00014368,2]
[399121313,1766116218648,-631.86870725,0.00014368,2]
[399121314,1766116218668,-1500.0,0.00014368,2]
[399121315,1766116218688,-1500.0,0.00014368,2]
[399121316,1766116218707,-1500.0,0.00014368,2]
[399121317,1766116218727,-1500.0,0.00014368,2]
[399121318,1766116218746,-1564.32242784,0.00014368,2]
[399121319,1766116218765,-1500.0,0.00014368,2]
[399121320,1766116218785,-1500.0,0.00014368,2]
[399121321,1766116218804,-1500.0,0.00014368,2]
[399121322,1766116218825,-1500.0,0.00014368,2]
[399121323,1766116218844,-1500.0,0.00014368,2]
[399121324,1766116218863,-1500.0,0.00014368,2]
[399121325,1766116218883,-529.85455268,0.00014368,2]
[399121326,1766116218902,-154.08373216,0.00014521,2]
[399121327,1766116218922,-500.0,0.0001454,2]
[399121328,1766116218942,-1017.6434728,0.00014647,2]
[399121329,1766116218964,-377.8,0.00014701,2]
[399121330,1766116218983,-500.0,0.00014768,2]
[399121331,1766116219002,-900.0,0.00014768,2]
[399121332,1766116219022,-500.0,0.00014792,2]
[399121333,1766116219042,-500.0,0.00014794,2]
[399121334,1766116219062,-186.26337017,0.00014794,2]
[399121335,1766116219084,-500.0,0.00014794,2]
[399121336,1766116219104,-383.60635765,0.00014794,2]
[399121337,1766116219124,-500.0,0.00014794,2]
[399121338,1766116219144,-500.0,0.00014794,2]
[399121339,1766116219164,-180.59472904,0.00014794,2]
[399121340,1766116219185,-500.0,0.00014794,2]
[399121341,1766116219204,-508.33144653,0.00014795,2]
[399121342,1766116219223,-1500.0,0.00014795,2]
[399121343,1766116219245,-1000.0,0.00014795,2]
[399121344,1766116219267,-1500.0,0.00014795,2]
[399121345,1766116219288,-1563.71373233,0.00014795,2]
[399121346,1766116219307,-1500.0,0.00014795,2]
[399121347,1766116219329,-417.03108278,0.00014795,2]
[399121348,1766116219349,-1500.0,0.00014795,2]
[399121349,1766116219369,-1500.0,0.00014795,2]
[399121350,1766116219389,-689.73938598,0.00014795,2]
[399121351,1766116219412,-1500.0,0.00014795,2]
[399121352,1766116219432,-1500.0,0.00014795,2]
[399121353,1766116219452,-487.58111742,0.00014795,2]
[399121354,1766116219472,-1109.18276357,0.00014795,2]
[399121355,1766116219492,-1500.0,0.00014795,2]
[399121356,1766116219512,-1500.0,0.00014795,2]
[399121357,1766116219531,-956.24088008,0.00014795,2]
[399121358,1766116219553,-1500.0,0.00014795,2]
[399121359,1766116219575,-1500.0,0.00014795,2]
[399121360,1766116219595,-1645.6692003,0.00014795,2]
[399121361,1766116219616,-1500.0,0.00014795,2]
[399121362,1766116219635,-1500.0,0.00014795,2]
[399121363,1766116219655,-1500.0,0.00014795,2]
[399121364,1766116219675,-227.066951,0.0001482,2]
[399121365,1766116219696,-500.0,0.00014916,2]
[399121366,1766116219719,-500.0,0.00014916,2]
[399121367,1766116219740,-1149.94257284,0.00014916,2]
[399121368,1766116219760,-2000.0,0.00014916,2]
[399121369,1766116219779,-2000.0,0.00014916,2]
[399121370,1766116219800,-501.86687543,0.00014916,2]
[399121371,1766116219822,-2000.0,0.00014916,2]
[399121372,1766116219843,-2000.0,0.00014916,2]
[399121373,1766116219862,-194.78601327,0.00014916,2]
[399121374,1766116219881,-177.62742553,0.00014916,2]
[399121375,1766116219903,-1567.74164231,0.00014916,2]
[399121376,1766116219923,-2000.0,0.00014916,2]
[399121377,1766116219943,-388.87866295,0.00014916,2]
[399121378,1766116219963,-691.55558068,0.00014916,2]
[399121379,1766116219982,-386.91323393,0.00014916,2]
[399121380,1766116220002,-151.0,0.00015,2]
[399121381,1766116220021,-800.0,0.00015068,2]
[399121382,1766116220043,-223.62519553,0.00015154,2]
[399121383,1766116220064,-258.77,0.000152,2]
[399121384,1766116220086,-453.37,0.00015289,2]
[399121385,1766116220106,-1200.0,0.00015316,2]
[399121386,1766116220126,-500.0,0.00015342,2]
[399121387,1766116220146,-1093.24130498,0.00015342,2]
[399121388,1766116220168,-2000.0,0.00015342,2]
[399121389,1766116220186,-1069.31989724,0.00015342,2]
[399121390,1766116220206,-2000.0,0.00015342,2]
[399121391,1766116220228,-1910.84528576,0.00015342,2]
[399121392,1766116220250,-2000.0,0.00015342,2]
[399121393,1766116220269,-2000.0,0.00015342,2]
[399121394,1766116220291,-2000.0,0.00015342,2]
[399121395,1766116220314,-2000.0,0.00015342,2]
[399121396,1766116220334,-2000.0,0.00015342,2]
[399121397,1766116220353,-2000.0,0.00015342,2]
[399121398,1766116220373,-2000.0,0.00015342,2]
[399121399,1766116220393,-733.22326142,0.00015342,2]
[399121400,1766116220413,-1000.0,0.000154,2]
[399121401,1766116220433,-520.19424366,0.00015464,2]
[399121402,1766116220452,-2500.0,0.00015464,2]
[399121403,1766116220471,-2500.0,0.00015464,2]
[399121404,1766116220489,-1491.27843286,0.00015464,2]
[399121405,1766116220508,-2509.22173865,0.00015464,2]
[399121406,1766116220549,-2500.0,0.00015464,2]
[399121407,1766116220660,-500.0,0.00015599,2]
[399121408,1766116220683,-1500.0,0.00015864,2]
[399121409,1766116220706,-528.93,0.00015877,2]
[399121410,1766116220728,-298.31140917,0.0001589,2]
[399121411,1766116220747,-2500.0,0.0001589,2]
[399121412,1766116220766,-2591.16374215,0.0001589,2]
[399121413,1766116220786,-1573.55828561,0.0001589,2]
[399121414,1766116220817,-525.30314363,0.0001589,2]
[399121415,1766116220840,-2500.0,0.0001589,2]
[399121416,1766116220861,-2500.0,0.0001589,2]
[399121417,1766116220882,-2500.0,0.0001589,2]
[399121449,1766116231822,-255.49749186,0.00016012,2]
[399121451,1766116231837,-929.26250814,0.00016012,2]
[399121453,1766116231849,-373.49200369,0.00016012,2]
[399121456,1766116231873,-1441.74799631,0.00016012,2]
[399121457,1766116231883,-545.28132343,0.00016012,2]
[399121459,1766116231893,-177.0,0.00016134,2]
[399121461,1766116231904,-500.0,0.00016164,2]
[399121463,1766116231913,-1073.64116876,0.00016164,2]
[399121464,1766116231923,-332.79806036,0.00016354,2]
[399121466,1766116231932,-1617.52184798,0.00016412,2]
[399121468,1766116231942,-506.12465459,0.00016438,2]
[399121469,1766116231952,-3000.0,0.00016438,2]
[399121471,1766116231962,-1477.3467268,0.00016438,2]
[399121473,1766116231973,-507.70603709,0.00016438,2]
[399121474,1766116231983,-604.49,0.00016465,2]
[399121475,1766116231993,-2970.87113372,0.0001656,2]
[399121476,1766116232003,-184.703,0.00016574,2]
[399121477,1766116232013,-231.436,0.00016574,2]
[399121478,1766116232022,-332.79806036,0.00016754,2]
[399121479,1766116232032,-1682.35,0.0001686,2]
[399121480,1766116232042,-108.84821978,0.00016986,2]
[399121481,1766116232053,-391.15178022,0.00016986,2]
[399121482,1766116232063,-636.44821978,0.00016986,2]
[399121483,1766116232074,-975.72973871,0.00016986,2]
[399121484,1766116232091,-1887.82204151,0.00016986,2]
[399121485,1766116232101,-680.05,0.00017053,2]
[399121486,1766116232110,-333.13085842,0.00017154,2]
[399121487,1766116232119,-295.98009094,0.00017496,2]
[399121488,1766116232129,-4000.0,0.00017534,2]
[399121489,1766116232139,-755.61,0.00017641,2]
[399121490,1766116232149,-4500.0,0.00018082,2]
[399121491,1766116232159,-204.0,0.00018134,2]
[399121492,1766116232168,-3856.29516467,0.0001863,2]
[399121493,1766116232177,-151.0,0.000193,2]
[399121494,1766116232187,-155.79,0.000193,2]
[399121495,1766116232196,-151.59586841,0.0002,2]
[399121496,1766116232206,-231.0,0.00020134,2]
[399121497,1766116232215,-321.80443629,0.00021833,2]
[399121498,1766116232224,-258.0,0.00022134,2]
[399121499,1766116232234,-9290.04,0.000222,2]
[399121500,1766116232243,-151.0,0.000236,9]
[399121501,1766116232252,-285.0,0.00024134,2]
[399121502,1766116232261,-8622.57800928,0.000249,2]
[399121503,1766116232271,-312.0,0.00026134,2]
[399121504,1766116232279,-2000.0,0.0002648,120]
[399121505,1766116232288,-2000.0,0.0002648,120]
[399121506,1766116232298,-2000.0,0.0002648,120]
[399121507,1766116232306,-556.146,0.0002648,120]
[399121508,1766116232315,-312.25000385,0.00027434,2]
[399121509,1766116232324,-151.0,0.000279,14]
[399121510,1766116232336,-500.0,0.00027995,2]
[399121511,1766116232345,-339.0,0.00028134,2]
[399121512,1766116232354,-321.80443629,0.00029519,2]
[399121513,1766116232364,-562.05000692,0.00029572,2]
[399121514,1766116232373,-393.70664052,0.00029593,2]
[399121515,1766116232382,-188.2022459,0.00030001,2]
[399121516,1766116232392,-366.0,0.00030134,2]
[399121517,1766116232401,-257.35651684,0.00031467,2]
[399121518,1766116232410,-449.95044631,0.00031656,2]
[399121519,1766116232419,-999.20001231,0.00031708,2]
[399121520,1766116232428,-393.0,0.00032134,2]
[399121521,1766116232438,-151.0,0.000322,12]
[399121522,1766116232447,-4311.28900464,0.00032292,2]
[399121523,1766116232457,-155.79,0.000323,14]
[399121524,1766116232466,-230.21762966,0.0003278,2]
[399121525,1766116232481,-1131.32991796,0.00033125,2]
[399121526,1766116232494,-250.0,0.00033125,2]
[399121527,1766116232508,-250.0,0.00033125,2]
[399121528,1766116232521,-250.0,0.00033125,2]
[399121529,1766116232532,-250.0,0.00033125,2]
[399121530,1766116232544,-250.0,0.00033125,2]
[399121531,1766116232556,-250.0,0.00033125,2]
[399121532,1766116232567,-250.0,0.00033125,2]
[399121533,1766116232578,-250.0,0.00033125,2]
[399121534,1766116232590,-250.0,0.00033125,2]
[399121535,1766116232604,-250.0,0.00033125,2]
[399121536,1766116232616,-250.0,0.00033125,2]
[399121537,1766116232627,-999.786807,0.00034124,2]
[399121538,1766116232639,-420.0,0.00034134,120]
[399121539,1766116232650,-9290.04,0.000342,2]
[399121540,1766116232662,-1041.66666667,0.00034934,2]
[399121541,1766116232673,-364.35666745,0.00035616,7]
[399121542,1766116232684,-447.0,0.00036134,120]
[399121543,1766116232695,-151.0,0.000365,11]
[399121544,1766116232706,-229.0,0.00036853,2]
[399121545,1766116232716,-229.0,0.00037008,2]
[399121546,1766116232727,-229.0,0.00037093,2]
[399121547,1766116232738,-229.0,0.00037195,2]
[399121548,1766116232750,-321.80443629,0.00037204,2]
[399121549,1766116232761,-229.0,0.00037206,120]
[399121550,1766116232772,-229.0,0.00037457,2]
[399121551,1766116232782,-229.0,0.00037756,2]
[399121552,1766116232795,-229.0,0.00037865,2]
[399121553,1766116232805,-179.0,0.00037917,7]
[399121554,1766116232815,-229.0,0.00037929,2]
[399121555,1766116232827,-500.0,0.00037956,2]
[399121556,1766116232838,-179.0,0.00037956,2]
[399121557,1766116232851,-179.0,0.00038131,2]
[399121558,1766116232863,-474.0,0.00038134,120]
[399121559,1766116232874,-182.0,0.00038239,2]
[399121560,1766116232885,-179.0,0.00038632,2]
[399121561,1766116232897,-229.0,0.00038725,2]
[399121562,1766116232909,-229.0,0.00038738,2]
[399121563,1766116232920,-229.0,0.0003909,2]
[399121564,1766116232932,-229.0,0.00039271,7]
[399121565,1766116232943,-155.79,0.000393,30]
[399121566,1766116232955,-500.0,0.00039726,15]
[399121567,1766116232965,-500.0,0.00039726,15]
[399121568,1766116232977,-500.0,0.00039726,15]
[399121569,1766116232988,-500.0,0.00039726,15]
[399121570,1766116232999,-500.0,0.00039726,15]
[399121571,1766116233009,-390.27201279,0.00039726,15]
[399121572,1766116233019,-500.0,0.00039726,15]
[399121573,1766116233030,-500.0,0.00039726,15]
[399121574,1766116233042,-500.0,0.00039726,15]
[399121575,1766116233053,-500.0,0.00039726,15]
[399121576,1766116233062,-229.0,0.00039771,2]
[399121577,1766116233073,-231.436,0.00039931,56]
[399121578,1766116233089,-179.0,0.00039932,2]
[399121579,1766116233102,-229.0,0.00039998,2]
[399121580,1766116233113,-229.0,0.0004007,2]
[399121581,1766116233126,-182.0,0.00040078,7]
[399121582,1766116233138,-9290.04,0.000401,2]
[399121583,1766116233151,-248.34723886,0.00040134,120]
[399121584,1766116233165,-252.65276114,0.00040134,120]
[399121585,1766116233177,-396.8414016,0.00040236,12]
[399121586,1766116233188,-151.0,0.000408,20]
[399121587,1766116233199,-1295.07490359,0.00040948,2]
[399121588,1766116233211,-538.45971645,0.00041096,31]
[399121589,1766116233222,-179.0,0.00041218,2]
[399121590,1766116233234,-5000.0,0.00041336,120]
[399121591,1766116233245,-5000.0,0.00041336,120]
[399121592,1766116233257,-258.77187702,0.00041336,120]
[399121593,1766116233268,-179.0,0.00041578,120]
[399121594,1766116233279,-10000.0,0.000419,120]
[399121595,1766116233289,-500.0,0.00041989,2]
[399121596,1766116233300,-500.0,0.00041989,2]
[399121597,1766116233310,-500.0,0.00041989,2]
[399121598,1766116233320,-500.0,0.00041989,2]
[399121599,1766116233332,-224.87898286,0.00042134,120]
[399121600,1766116233342,-2000.0,0.00043277,3]
[399121601,1766116233353,-30219.7582207,0.0004399,2]
[399121602,1766116233539,5000.0,0.00016,2]
[399121623,1766116237845,-232.95461084,0.0001623,2]
[399121625,1766116237856,-233.18756545,0.00017011,2]
[399121628,1766116237866,-321.80443629,0.0004489,2]
[399121630,1766116237876,-1405.46988772,0.0004498,3]
[399121633,1766116237899,-653.31695367,0.0004498,3]
[399121636,1766116237913,-541.086,0.0004498,3]
[399121638,1766116237926,-6022.70516789,0.0004498,3]
[399121640,1766116237937,-745.74,0.0004499,10]
[399121642,1766116237947,-21556.4450232,0.0004499,3]
[399121644,1766116237956,-500.0,0.00044999,2]
[399121646,1766116237966,-500.0,0.00044999,2]
[399121648,1766116237977,-500.0,0.00044999,2]
[399121650,1766116237986,-500.0,0.00044999,2]
[399121652,1766116237996,-209.65523059,0.00044999,2]
[399121654,1766116238007,-9101.09475317,0.00045,30]
[399121657,1766116238020,-201285.55729251,0.00045,30]
[399121659,1766116238030,-6942.5,0.00045,14]
[399121661,1766116238040,-151.0,0.000451,23]
[399121663,1766116238050,-172.0,0.00046,60]
[399121665,1766116238060,-172.0,0.00048,90]
[399121667,1766116238070,-172.0,0.00049,120]
[399121669,1766116238081,-410.39862904,0.00049315,30]
[399121671,1766116238092,-527.19817314,0.00049315,120]
[399121673,1766116238103,-469.05593204,0.00049315,120]
[399121675,1766116238113,-561.29212144,0.00049315,120]
[399121677,1766116238123,-518.64882702,0.00049315,120]
[399121679,1766116238134,-514.02591226,0.00049315,120]
[399121681,1766116238144,-532.01189537,0.00049315,120]
[399121683,1766116238155,-543.04823529,0.00049315,120]
[399121686,1766116238165,-502.30759297,0.00049315,120]
[399121688,1766116238175,-516.70471337,0.00049315,120]
[399121690,1766116238185,-485.43343675,0.00049315,120]
[399121692,1766116238195,-532.44476255,0.00049315,120]
[399121694,1766116238206,-310.55212583,0.00049315,120]
[399121707,1766116238318,-500.0,0.00049315,120]
[399121709,1766116238333,-151.0,0.000494,28]